fUSD/lending_fUSD_20250610
["ID","MTS","AMOUNT","RATE_DAILY","PERIOD"]
[365321332,1749599453343,-490.0,0.0001726,2]
[365321333,1749599453353,-898.58,0.0001726,2]
[365321334,1749599453363,-490.0,0.0001726,2]
[365321335,1749599453372,-490.0,0.0001726,2]
[365321336,1749599453382,-164.44778347,0.0001726,2]
[365321337,1749599453391,-490.0,0.0001726,2]
[365321338,1749599453402,-1036.73,0.0001726,2]
[365321339,1749599453411,-490.0,0.0001726,2]
[365321340,1749599453421,-490.0,0.0001726,2]
[365321341,1749599453430,-490.0,0.0001726,2]
[365321342,1749599453440,-490.0,0.0001726,2]
[365321343,1749599453450,-875.84,0.0001726,2]
[365321344,1749599453459,-490.0,0.0001726,2]
[365321345,1749599453469,-490.0,0.0001726,2]
[365321346,1749599453479,-490.0,0.0001726,2]
[365321347,1749599453488,-490.0,0.0001726,2]
[365321348,1749599453498,-490.0,0.0001726,2]
[365321349,1749599453507,-490.0,0.0001726,2]
[365321350,1749599453517,-490.0,0.0001726,2]
[365321351,1749599453526,-490.0,0.0001726,2]
[365321352,1749599453536,-490.0,0.0001726,2]
[365321353,1749599453546,-490.0,0.0001726,2]
[365321354,1749599453555,-490.0,0.0001726,2]
[365321355,1749599453565,-490.0,0.0001726,2]
[365321356,1749599453575,-490.0,0.0001726,2]
[365321357,1749599453584,-490.0,0.0001726,2]
[365321358,1749599453593,-490.0,0.0001726,2]
[365321359,1749599453602,-490.0,0.0001726,2]
[365321360,1749599453612,-594.52,0.0001726,2]
[365321361,1749599453622,-490.0,0.0001726,2]
[365321362,1749599453631,-1266.74,0.0001726,2]
[365321363,1749599453640,-490.0,0.0001726,2]
[365321364,1749599453650,-490.0,0.0001726,2]
[365321365,1749599453659,-490.0,0.0001726,2]
[365321366,1749599453669,-510.02,0.0001726,2]
[365321367,1749599453678,-490.0,0.0001726,2]
[365321368,1749599453688,-490.0,0.0001726,2]
[365321369,1749599453697,-490.0,0.0001726,2]
[365321370,1749599453707,-2025.42393116,0.0001726,2]
[365321371,1749599453716,-490.0,0.0001726,2]
[365321372,1749599453725,-490.0,0.0001726,2]
[365321373,1749599453735,-490.0,0.0001726,2]
[365321374,1749599453744,-490.0,0.0001726,2]
[365321375,1749599453753,-490.0,0.0001726,2]
[365321376,1749599453763,-490.0,0.0001726,2]
[365321377,1749599453772,-490.0,0.0001726,2]
[365321378,1749599453782,-490.0,0.0001726,2]
[365321379,1749599453791,-490.0,0.0001726,2]
[365321380,1749599453800,-490.0,0.0001726,2]
[365321381,1749599453810,-490.0,0.0001726,2]
[365321382,1749599453819,-151.0,0.0001726,2]
[365321383,1749599453829,-490.0,0.0001726,2]
[365321384,1749599453838,-151.0,0.0001726,2]
[365321385,1749599453848,-490.0,0.0001726,2]
[365321386,1749599453858,-490.0,0.0001726,2]
[365321387,1749599453867,-151.0,0.0001726,2]
[365321388,1749599453877,-223.536047,0.0001726,2]
[365321389,1749599453886,-223.536047,0.0001726,2]
[365321390,1749599453896,-490.0,0.0001726,2]
[365321391,1749599453906,-2061.240596,0.0001726,2]
[365321392,1749599453915,-490.0,0.0001726,2]
[365321393,1749599453924,-490.0,0.0001726,2]
[365321394,1749599453934,-2061.240596,0.0001726,2]
[365321395,1749599453943,-490.0,0.0001726,2]
[365321396,1749599453957,-490.0,0.0001726,2]
[365321397,1749599453966,-490.0,0.0001726,2]
[365321398,1749599453975,-490.0,0.0001726,2]
[365321399,1749599453984,-151.0,0.0001726,2]
[365321400,1749599453994,-490.0,0.0001726,2]
[365321401,1749599454003,-150.0,0.000173,2]
[365321402,1749599454012,-151.0,0.00017318,2]
[365321403,1749599454022,-151.0,0.00017318,2]
[365321404,1749599454032,-4722.240875,0.00017318,2]
[365321405,1749599454042,-4722.240875,0.00017318,2]
[365321406,1749599454052,-7353.54359579,0.00017385,2]
[365321407,1749599454062,-490.0,0.00017424,2]
[365321408,1749599454071,-490.0,0.00017424,2]
[365321409,1749599454080,-490.0,0.00017424,2]
[365321410,1749599454090,-355.68,0.00017424,2]
[365321411,1749599454099,-490.0,0.00017424,2]
[365321412,1749599454108,-490.0,0.00017424,2]
[365321413,1749599454117,-490.0,0.00017424,2]
[365321414,1749599454127,-420.0,0.00017424,2]
[365321415,1749599454136,-490.0,0.00017424,2]
[365321416,1749599454146,-490.0,0.00017424,2]
[365321417,1749599454155,-490.0,0.00017424,2]
[365321418,1749599454165,-420.0,0.00017424,2]
[365321419,1749599454174,-420.0,0.00017424,2]
[365321420,1749599454183,-420.0,0.00017424,2]
[365321421,1749599454193,-420.0,0.00017424,2]
[365321422,1749599454202,-536.27,0.00017424,2]
[365321423,1749599454212,-420.0,0.00017424,2]
[365321424,1749599454222,-420.0,0.00017424,2]
[365321425,1749599454232,-420.0,0.00017424,2]
[365321426,1749599454241,-420.0,0.00017424,2]
[365321427,1749599454251,-420.0,0.00017424,2]
[365321428,1749599454261,-396.8614671,0.00017424,2]
[365321429,1749599454270,-420.0,0.00017424,2]
[365321430,1749599454280,-490.0,0.00017424,2]
[365321431,1749599454290,-420.0,0.00017424,2]
[365321432,1749599454299,-420.0,0.00017424,2]
[365321433,1749599454308,-490.0,0.00017424,2]
[365321434,1749599454318,-420.0,0.00017424,2]
[365321435,1749599454328,-420.0,0.00017424,2]
[365321436,1749599454339,-490.0,0.00017424,2]
[365321437,1749599454348,-490.0,0.00017424,2]
[365321438,1749599454358,-420.0,0.00017424,2]
[365321439,1749599454368,-490.0,0.00017424,2]
[365321440,1749599454378,-662.48,0.00017424,2]
[365321441,1749599454387,-420.0,0.00017424,2]
[365321442,1749599454399,-420.0,0.00017424,2]
[365321443,1749599454408,-898.58,0.00017424,2]
[365321444,1749599454418,-490.0,0.00017424,2]
[365321445,1749599454428,-420.0,0.00017424,2]
[365321446,1749599454438,-490.0,0.00017424,2]
[365321447,1749599454448,-1036.73,0.00017424,2]
[365321448,1749599454457,-420.0,0.00017424,2]
[365321449,1749599454467,-420.0,0.00017424,2]
[365321450,1749599454476,-490.0,0.00017424,2]
[365321451,1749599454485,-420.0,0.00017424,2]
[365321452,1749599454495,-875.84,0.00017424,2]
[365321453,1749599454505,-490.0,0.00017424,2]
[365321454,1749599454515,-490.0,0.00017424,2]
[365321455,1749599454524,-420.0,0.00017424,2]
[365321456,1749599454535,-279.95093486,0.00017424,2]
[365321457,1749599454544,-420.0,0.00017424,2]
[365321458,1749599454555,-420.0,0.00017424,2]
[365321459,1749599454564,-490.0,0.00017424,2]
[365321460,1749599454574,-420.0,0.00017424,2]
[365321461,1749599454583,-490.0,0.00017424,2]
[365321462,1749599454593,-420.0,0.00017424,2]
[365321463,1749599454753,-490.0,0.00017424,2]
[365321464,1749599454763,-490.0,0.00017424,2]
[365321465,1749599454772,-490.0,0.00017424,2]
[365321466,1749599454781,-420.0,0.00017424,2]
[365321467,1749599454791,-490.0,0.00017424,2]
[365321468,1749599454800,-420.0,0.00017424,2]
[365321469,1749599454809,-1266.74,0.00017424,2]
[365321470,1749599454819,-490.0,0.00017424,2]
[365321471,1749599454828,-410.0,0.00017424,2]
[365321472,1749599454837,-314.71184258,0.00017424,2]
[365321473,1749599454847,-410.0,0.00017424,2]
[365321474,1749599454856,-490.0,0.00017424,2]
[365321475,1749599454865,-420.0,0.00017424,2]
[365321476,1749599454875,-490.0,0.00017424,2]
[365321477,1749599454884,-490.0,0.00017424,2]
[365321478,1749599454893,-490.0,0.00017424,2]
[365321479,1749599454903,-490.0,0.00017424,2]
[365321480,1749599454912,-490.0,0.00017424,2]
[365321481,1749599454922,-490.0,0.00017424,2]
[365321482,1749599454933,-490.0,0.00017424,2]
[365321483,1749599454943,-490.0,0.00017424,2]
[365321484,1749599454958,-490.0,0.00017424,2]
[365321485,1749599454969,-490.0,0.00017424,2]
[365321486,1749599454980,-510.88431125,0.00017424,2]
[365321487,1749599454993,-151.0,0.00017424,2]
[365321488,1749599455003,-490.0,0.00017424,2]
[365321489,1749599455015,-151.0,0.00017424,2]
[365321490,1749599455025,-490.0,0.00017424,2]
[365321491,1749599455034,-490.0,0.00017424,2]
[365321492,1749599455043,-151.0,0.00017424,2]
[365321493,1749599455053,-490.0,0.00017424,2]
[365321494,1749599455062,-490.0,0.00017424,2]
[365321495,1749599455071,-490.0,0.00017424,2]
[365321496,1749599455081,-490.0,0.00017424,2]
[365321497,1749599455090,-490.0,0.00017424,2]
[365321498,1749599455100,-490.0,0.00017424,2]
[365321499,1749599455109,-490.0,0.00017424,2]
[365321500,1749599455118,-490.0,0.00017424,2]
[365321501,1749599455127,-666.0,0.0001744,2]
[365321502,1749599455136,-611.15,0.00017589,2]
[365321503,1749599455145,-490.0,0.00017589,2]
[365321504,1749599455156,-490.0,0.00017589,2]
[365321505,1749599455165,-490.0,0.00017589,2]
[365321506,1749599455174,-490.0,0.00017589,2]
[365321507,1749599455184,-490.0,0.00017589,2]
[365321508,1749599455194,-490.0,0.00017589,2]
[365321509,1749599455203,-490.0,0.00017589,2]
[365321510,1749599455212,-490.0,0.00017589,2]
[365321511,1749599455222,-350.0,0.00017589,2]
[365321512,1749599455231,-490.0,0.00017589,2]
[365321513,1749599455241,-410.0,0.00017589,2]
[365321514,1749599455250,-410.0,0.00017589,2]
[365321515,1749599455261,-410.0,0.00017589,2]
[365321516,1749599455270,-662.48,0.00017589,2]
[365321517,1749599455280,-151.0,0.00017589,2]
[365321518,1749599455289,-898.58,0.00017589,2]
[365321519,1749599455300,-490.0,0.00017589,2]
[365321520,1749599455310,-151.0,0.00017589,2]
[365321521,1749599455319,-490.0,0.00017589,2]
[365321522,1749599455329,-1036.73,0.00017589,2]
[365321523,1749599455338,-490.0,0.00017589,2]
[365321524,1749599455348,-875.84,0.00017589,2]
[365321525,1749599455359,-490.0,0.00017589,2]
[365321526,1749599455369,-490.0,0.00017589,2]
[365321527,1749599455378,-490.0,0.00017589,2]
[365321528,1749599455388,-410.0,0.00017589,2]
[365321529,1749599455397,-490.0,0.00017589,2]
[365321530,1749599455407,-410.0,0.00017589,2]
[365321531,1749599455416,-490.0,0.00017589,2]
[365321532,1749599455426,-490.0,0.00017589,2]
[365321533,1749599455436,-4722.240875,0.00017589,2]
[365321534,1749599455445,-1266.74,0.00017589,2]
[365321535,1749599455454,-490.0,0.00017589,2]
[365321536,1749599455464,-4722.240875,0.00017589,2]
[365321537,1749599455474,-490.0,0.00017589,2]
[365321538,1749599455485,-410.0,0.00017589,2]
[365321539,1749599455495,-410.0,0.00017589,2]
[365321540,1749599455504,-410.0,0.00017589,2]
[365321541,1749599455514,-410.0,0.00017589,2]
[365321542,1749599455524,-506.48,0.00017589,2]
[365321543,1749599455533,-410.0,0.00017589,2]
[365321544,1749599455543,-410.0,0.00017589,2]
[365321545,1749599455552,-410.0,0.00017589,2]
[365321546,1749599455562,-410.0,0.00017589,2]
[365321547,1749599455572,-399.7,0.00017589,2]
[365321548,1749599455582,-490.0,0.00017589,2]
[365321549,1749599455591,-410.0,0.00017589,2]
[365321550,1749599455601,-490.0,0.00017589,2]
[365321551,1749599455611,-151.0,0.00017589,2]
[365321552,1749599455620,-490.0,0.00017589,2]
[365321553,1749599455630,-490.0,0.00017589,2]
[365321554,1749599455640,-490.0,0.00017589,2]
[365321555,1749599455650,-490.0,0.00017589,2]
[365321556,1749599455660,-490.0,0.00017589,2]
[365321557,1749599455669,-490.0,0.00017589,2]
[365321558,1749599455679,-490.0,0.00017589,2]
[365321559,1749599455688,-490.0,0.00017589,2]
[365321560,1749599455698,-150.0,0.000176,2]
[365321561,1749599455707,-200.0,0.00017609,4]
[365321562,1749599455717,-410.65,0.00017639,2]
[365321563,1749599455726,-4306.26905191,0.000177,2]
[365321564,1749599455736,-7353.54359579,0.00017745,2]
[365321565,1749599455746,-490.0,0.00017753,2]
[365321566,1749599455755,-490.0,0.00017753,2]
[365321567,1749599455765,-490.0,0.00017753,2]
[365321568,1749599455774,-490.0,0.00017753,2]
[365321569,1749599455783,-490.0,0.00017753,2]
[365321570,1749599455793,-512.19,0.00017753,2]
[365321571,1749599455803,-490.0,0.00017753,2]
[365321572,1749599455812,-249.62,0.00017753,2]
[365321573,1749599455823,-490.0,0.00017753,2]
[365321574,1749599455832,-662.48,0.00017753,2]
[365321575,1749599455842,-898.58,0.00017753,2]
[365321576,1749599455852,-490.0,0.00017753,2]
[365321577,1749599455862,-490.0,0.00017753,2]
[365321578,1749599455872,-1036.73,0.00017753,2]
[365321579,1749599455882,-490.0,0.00017753,2]
[365321580,1749599455891,-875.84,0.00017753,2]
[365321581,1749599455901,-490.0,0.00017753,2]
[365321582,1749599455910,-457.78,0.00017753,2]
[365321583,1749599455919,-490.0,0.00017753,2]
[365321584,1749599455929,-490.0,0.00017753,2]
[365321585,1749599455939,-490.0,0.00017753,2]
[365321586,1749599455953,-490.0,0.00017753,2]
[365321587,1749599455963,-1266.74,0.00017753,2]
[365321588,1749599455972,-269.64,0.00017753,2]
[365321589,1749599455984,-419.36,0.00017753,2]
[365321590,1749599455995,-151.0,0.00017753,2]
[365321591,1749599456005,-400.0,0.00017753,2]
[365321592,1749599456015,-206.711881,0.00017753,2]
[365321593,1749599456026,-490.0,0.00017753,2]
[365321594,1749599456035,-223.536047,0.00017753,2]
[365321595,1749599456045,-223.536047,0.00017753,2]
[365321596,1749599456055,-490.0,0.00017753,2]
[365321597,1749599456064,-490.0,0.00017753,2]
[365321598,1749599456073,-490.0,0.00017753,2]
[365321599,1749599456083,-490.0,0.00017753,2]
[365321600,1749599456093,-490.0,0.00017753,2]
[365321601,1749599456102,-490.0,0.00017753,2]
[365321602,1749599456113,-400.0,0.00017753,2]
[365321603,1749599456122,-490.0,0.00017753,2]
[365321604,1749599456132,-500.0,0.00017808,2]
[365321605,1749599456141,-500.0,0.00017808,2]
[365321606,1749599456150,-1680.0,0.00017846,2]
[365321607,1749599456160,-800.0,0.000179,6]
[365321608,1749599456170,-408.13608082,0.00017907,2]
[365321609,1749599456180,-490.0,0.00017917,2]
[365321610,1749599456190,-530.4,0.00017917,2]
[365321611,1749599456199,-460.68,0.00017917,2]
[365321612,1749599456209,-223.5,0.00017917,2]
[365321613,1749599456218,-490.0,0.00017917,2]
[365321614,1749599456233,-490.0,0.00017917,2]
[365321615,1749599456251,-490.0,0.00017917,2]
[365321616,1749599456264,-662.48,0.00017917,2]
[365321617,1749599456277,-898.58,0.00017917,2]
[365321618,1749599456292,-490.0,0.00017917,2]
[365321619,1749599456306,-490.0,0.00017917,2]
[365321620,1749599456321,-1036.73,0.00017917,2]
[365321621,1749599456336,-307.44,0.00017917,2]
[365321622,1749599456349,-875.84,0.00017917,2]
[365321623,1749599456362,-490.0,0.00017917,2]
[365321624,1749599456373,-400.0,0.00017917,2]
[365321625,1749599456386,-278.16,0.00017917,2]
[365321626,1749599456402,-490.0,0.00017917,2]
[365321627,1749599456416,-490.0,0.00017917,2]
[365321628,1749599456429,-1266.74,0.00017917,2]
[365321629,1749599456444,-490.0,0.00017917,2]
[365321630,1749599456458,-490.0,0.00017917,2]
[365321631,1749599456472,-490.0,0.00017917,2]
[365321632,1749599456488,-400.0,0.00017917,2]
[365321633,1749599456502,-490.0,0.00017917,2]
[365321634,1749599456515,-490.0,0.00017917,2]
[365321635,1749599456528,-490.0,0.00017917,2]
[365321636,1749599456541,-490.0,0.00017917,2]
[365321637,1749599456556,-151.0,0.00017955,2]
[365321638,1749599456569,-265.989115,0.00017955,2]
[365321639,1749599456582,-265.989115,0.00017955,2]
[365321640,1749599456594,-2061.240596,0.00017955,2]
[365321641,1749599456606,-2061.240596,0.00017955,2]
[365321642,1749599456618,-260.01,0.00017955,2]
[365321643,1749599456635,-334.0,0.00017962,2]
[365321644,1749599456648,-166.36,0.00017963,2]
[365321645,1749599456661,-151.0,0.00017963,2]
[365321646,1749599456674,-151.0,0.00017963,2]
[365321647,1749599456688,-4722.240875,0.00017963,2]
[365321648,1749599456703,-4722.240875,0.00017963,2]
[365321649,1749599456715,-151.0,0.00017963,2]
[365321650,1749599456727,-250.0,0.00017972,2]
[365321651,1749599456738,-250.0,0.00017972,2]
[365321652,1749599456750,-300.0,0.00017972,2]
[365321653,1749599456763,-300.0,0.00017972,2]
[365321654,1749599456775,-249.9,0.00018079,2]
[365321655,1749599456788,-573.08,0.00018082,2]
[365321656,1749599456800,-490.0,0.00018082,2]
[365321657,1749599456812,-160.72,0.00018082,2]
[365321658,1749599456825,-490.0,0.00018082,2]
[365321659,1749599456837,-662.48,0.00018082,2]
[365321660,1749599456849,-898.58,0.00018082,2]
[365321661,1749599456862,-490.0,0.00018082,2]
[365321662,1749599456874,-490.0,0.00018082,2]
[365321663,1749599456887,-1036.73,0.00018082,2]
[365321664,1749599456899,-875.84,0.00018082,2]
[365321665,1749599456911,-490.0,0.00018082,2]
[365321666,1749599456923,-468.02,0.00018082,2]
[365321667,1749599456935,-490.0,0.00018082,2]
[365321668,1749599456949,-1266.74,0.00018082,2]
[365321669,1749599456962,-490.0,0.00018082,2]
[365321670,1749599456974,-490.0,0.00018082,2]
[365321671,1749599456985,-490.0,0.00018082,2]
[365321672,1749599456998,-490.0,0.00018082,2]
[365321673,1749599457010,-490.0,0.00018082,2]
[365321674,1749599457022,-537.26,0.00018082,2]
[365321675,1749599457034,-490.0,0.00018082,2]
[365321676,1749599457046,-7353.54359579,0.00018104,2]
[365321677,1749599457058,-490.0,0.00018246,2]
[365321678,1749599457070,-490.0,0.00018246,2]
[365321679,1749599457082,-662.48,0.00018246,2]
[365321680,1749599457094,-898.58,0.00018246,2]
[365321681,1749599457106,-580.06094512,0.00018246,2]
[365321682,1749599457117,-490.0,0.00018246,2]
[365321683,1749599457128,-1036.73,0.00018246,2]
[365321684,1749599457140,-875.84,0.00018246,2]
[365321685,1749599457152,-490.0,0.00018246,2]
[365321686,1749599457164,-490.0,0.00018246,2]
[365321687,1749599457177,-1266.74,0.00018246,2]
[365321688,1749599457189,-490.0,0.00018246,2]
[365321689,1749599457201,-490.0,0.00018246,2]
[365321690,1749599457213,-490.0,0.00018246,2]
[365321691,1749599457225,-490.0,0.00018246,2]
[365321692,1749599457238,-490.0,0.00018246,2]
[365321693,1749599457249,-357.36,0.00018246,2]
[365321694,1749599457263,-151.0,0.00018275,2]
[365321695,1749599457279,-223.536047,0.00018275,2]
[365321696,1749599457291,-223.536047,0.00018275,2]
[365321697,1749599457303,-163.33,0.00018278,2]
[365321698,1749599457315,-591.98524284,0.00018329,2]
[365321699,1749599457327,-207.4,0.0001833,2]
[365321700,1749599457339,-151.0,0.0001833,2]
[365321701,1749599457351,-256.4583895,0.0001833,2]
[365321702,1749599457364,-500.0,0.0001833,2]
[365321703,1749599457376,-463.83983015,0.0001833,2]
[365321704,1749599457388,-1633.26835985,0.0001833,2]
[365321705,1749599457402,-151.0,0.0001833,2]
[365321706,1749599457415,-150.0,0.00018356,2]
[365321707,1749599457427,-833.29909032,0.00018367,2]
[365321708,1749599457438,-490.0,0.0001841,2]
[365321709,1749599457450,-439.17,0.0001841,2]
[365321710,1749599457463,-662.48,0.0001841,2]
[365321711,1749599457475,-221.669479,0.0001841,2]
[365321712,1749599457487,-898.58,0.0001841,2]
[365321713,1749599457500,-490.0,0.0001841,2]
[365321714,1749599457512,-1036.73,0.0001841,2]
[365321715,1749599457523,-875.84,0.0001841,2]
[365321716,1749599457535,-490.0,0.0001841,2]
[365321717,1749599457547,-490.0,0.0001841,2]
[365321718,1749599457559,-4722.240875,0.0001841,2]
[365321719,1749599457572,-1266.74,0.0001841,2]
[365321720,1749599457584,-4722.240875,0.0001841,2]
[365321721,1749599457595,-490.0,0.0001841,2]
[365321722,1749599457607,-151.0,0.0001841,2]
[365321723,1749599457619,-490.0,0.0001841,2]
[365321724,1749599457631,-490.0,0.0001841,2]
[365321725,1749599457642,-490.0,0.0001841,2]
[365321726,1749599457655,-490.0,0.0001841,2]
[365321727,1749599457667,-200.0,0.0001844,5]
[365321728,1749599457678,-170.69,0.00018461,2]
[365321729,1749599457690,-170.69,0.00018461,2]
[365321730,1749599457701,-170.69,0.00018461,2]
[365321731,1749599457713,-354.51,0.00018461,2]
[365321732,1749599457724,-170.69,0.00018461,2]
[365321733,1749599457736,-170.25,0.00018461,2]
[365321734,1749599457747,-151.0,0.00018463,2]
[365321735,1749599457759,-265.989115,0.00018463,2]
[365321736,1749599457770,-265.989115,0.00018463,2]
[365321737,1749599457782,-2061.240596,0.00018463,2]
[365321738,1749599457794,-2061.240596,0.00018463,2]
[365321739,1749599457805,-7353.54359579,0.00018463,2]
[365321740,1749599457816,-500.0,0.000185,2]
[365321741,1749599457828,-490.0,0.00018575,2]
[365321742,1749599457839,-662.48,0.00018575,2]
[365321743,1749599457851,-898.58,0.00018575,2]
[365321744,1749599457864,-172.55,0.00018575,2]
[365321745,1749599457876,-1036.73,0.00018575,2]
[365321746,1749599457888,-875.84,0.00018575,2]
[365321747,1749599457900,-165.21,0.00018575,2]
[365321748,1749599457912,-490.0,0.00018575,2]
[365321749,1749599457924,-1266.74,0.00018575,2]
[365321750,1749599457935,-490.0,0.00018575,2]
[365321751,1749599457948,-490.0,0.00018575,2]
[365321752,1749599457964,-490.0,0.00018575,2]
[365321753,1749599457976,-205.89,0.00018575,2]
[365321754,1749599457991,-490.0,0.00018575,2]
[365321755,1749599458004,-1435.41,0.000186,2]
[365321756,1749599458016,-1435.41,0.000187,2]
[365321757,1749599458036,-795.47,0.00018709,2]
[365321758,1749599458050,-490.0,0.00018739,2]
[365321759,1749599458061,-662.48,0.00018739,2]
[365321760,1749599458075,-898.58,0.00018739,2]
[365321761,1749599458086,-1036.73,0.00018739,2]
[365321762,1749599458096,-875.84,0.00018739,2]
[365321763,1749599458106,-490.0,0.00018739,2]
[365321764,1749599458341,-1266.74,0.00018739,2]
[365321765,1749599458372,-177.59,0.00018739,2]
[365321766,1749599458382,-171.6,0.00018739,2]
[365321767,1749599458392,-490.0,0.00018739,2]
[365321768,1749599458403,-490.0,0.00018739,2]
[365321769,1749599458413,-150.0,0.00018784,2]
[365321770,1749599458423,-160.8346859,0.000188,2]
[365321771,1749599458432,-517.7906506,0.00018819,2]
[365321772,1749599458442,-1489.13500001,0.0001882,2]
[365321773,1749599458451,-151.0,0.0001882,2]
[365321774,1749599458461,-151.0,0.0001882,2]
[365321775,1749599458471,-151.0,0.0001882,2]
[365321776,1749599458480,-151.0,0.0001882,2]
[365321777,1749599458491,-151.0,0.0001882,2]
[365321778,1749599458500,-151.0,0.0001882,2]
[365321779,1749599458511,-151.0,0.0001882,2]
[365321780,1749599458520,-151.0,0.0001882,2]
[365321781,1749599458529,-212.832839,0.0001882,2]
[365321782,1749599458539,-212.832839,0.0001882,2]
[365321783,1749599458548,-151.0,0.0001882,2]
[365321784,1749599458558,-151.0,0.00018822,2]
[365321785,1749599458567,-7353.54359579,0.00018822,2]
[365321786,1749599458577,-223.536047,0.00018865,2]
[365321787,1749599458586,-223.536047,0.00018865,2]
[365321788,1749599458595,-672.91796395,0.00018899,2]
[365321789,1749599458605,-500.0,0.00018899,2]
[365321790,1749599458614,-500.0,0.00018899,2]
[365321791,1749599458624,-500.0,0.00018899,2]
[365321792,1749599458634,-1969.5,0.000189,2]
[365321793,1749599458644,-36875.03,0.000189,2]
[365321794,1749599458654,-1969.5,0.000189,2]
[365321795,1749599458664,-36875.03,0.000189,2]
[365321796,1749599458673,-151.0,0.000189,2]
[365321797,1749599458682,-151.0,0.000189,2]
[365321798,1749599458691,-151.0,0.000189,2]
[365321799,1749599458701,-151.0,0.000189,2]
[365321800,1749599458710,-151.0,0.000189,2]
[365321801,1749599458720,-151.0,0.000189,2]
[365321802,1749599458730,-151.0,0.000189,2]
[365321803,1749599458739,-151.0,0.000189,2]
[365321804,1749599458749,-151.0,0.000189,2]
[365321805,1749599458758,-151.0,0.000189,2]
[365321806,1749599458767,-151.0,0.000189,2]
[365321807,1749599458777,-151.0,0.000189,2]
[365321808,1749599458787,-212.832839,0.000189,2]
[365321809,1749599458797,-212.832839,0.000189,2]
[365321810,1749599458806,-151.0,0.000189,2]
[365321811,1749599458816,-151.0,0.000189,2]
[365321812,1749599458826,-265.989115,0.000189,2]
[365321813,1749599458836,-265.989115,0.000189,2]
[365321814,1749599458846,-4722.240875,0.000189,2]
[365321815,1749599458856,-4722.240875,0.000189,2]
[365321816,1749599458865,-151.0,0.000189,2]
[365321817,1749599458875,-151.0,0.000189,2]
[365321818,1749599458885,-223.536047,0.000189,2]
[365321819,1749599458894,-223.536047,0.000189,2]
[365321820,1749599458903,-223.536047,0.000189,2]
[365321821,1749599458913,-223.536047,0.000189,2]
[365321822,1749599458922,-2061.240596,0.000189,2]
[365321823,1749599458931,-2061.240596,0.000189,2]
[365321824,1749599458941,-185.80941388,0.000189,2]
[365321825,1749599458956,-490.0,0.00018904,2]
[365321826,1749599458965,-151.0,0.00018904,2]
[365321827,1749599458974,-265.989115,0.00018904,2]
[365321828,1749599458984,-265.989115,0.00018904,2]
[365321829,1749599458994,-662.48,0.00018904,2]
[365321830,1749599459003,-898.58,0.00018904,2]
[365321831,1749599459013,-1036.73,0.00018904,2]